bitfinex-derivatives/quotes_BTCF0:USTF0_20210404
["timestamp","ask_amount","ask_price","bid_price","bid_amount"]
[1617540475167,1.00210855,57885.0,57881.0,0.25589655]
[1617540475367,0.00210855,57885.0,57881.0,0.25589655]
[1617540475569,1.0,57882.0,57881.0,0.10725655]
[1617540476767,1.01016706,57882.0,57881.0,0.10725655]
[1617540477176,0.01016706,57882.0,57881.0,0.10725655]
[1617540477368,0.00211394,57882.0,57881.0,0.10725655]
[1617540477768,0.00211394,57883.0,57881.0,0.10725655]
[1617540478181,1.00211396,57882.0,57881.0,0.10725655]
[1617540479269,1.0,57882.0,57881.0,0.10725655]
[1617540481570,1.0,57882.0,57869.0,0.35277106]
[1617540481771,1.0,57882.0,57868.0,0.35283032]
[1617540482370,2.945,57877.0,57871.0,0.10725655]
[1617540482971,1.0,57872.0,57871.0,0.10725655]
[1617540483571,0.00211,57884.0,57871.0,0.10725655]
[1617540483572,1.0,57877.0,57871.0,0.10725655]
[1617540483972,1.0,57880.0,57871.0,0.10725655]
[1617540484371,1.0,57880.0,57870.0,3.15323]
[1617540484372,1.0,57880.0,57879.0,0.10725655]
[1617540484571,1.0,57881.0,57879.0,0.10725655]
[1617540484872,0.00210993,57888.0,57879.0,0.10725655]
[1617540484873,1.0,57882.0,57879.0,0.10725655]
[1617540485472,0.49564737,57889.0,57879.0,0.10725655]
[1617540485473,1.0,57883.0,57879.0,0.10725655]
[1617540485875,1.0,57887.0,57879.0,0.10725655]
[1617540486073,1.0,57888.0,57879.0,0.10725655]
[1617540486273,1.0,57888.0,57887.0,0.10725655]
[1617540486475,1.0,57888.0,57887.0,0.23141655]
[1617540487777,1.4855,57889.0,57887.0,0.23141655]
[1617540487976,0.4855,57889.0,57887.0,0.23141655]
[1617540491889,1.0,57888.0,57887.0,0.10725655]
[1617540493083,1.4855,57889.0,57887.0,0.10725655]
[1617540493882,1.0,57888.0,57887.0,0.10725655]
[1617540495584,0.59275655,57889.0,57887.0,0.10725655]
[1617540496389,1.59275655,57889.0,57887.0,0.10725655]
[1617540496989,1.0,57888.0,57887.0,0.10725655]
[1617540499589,0.59275655,57889.0,57887.0,0.10725655]
[1617540499797,1.63601,57888.0,57887.0,0.10725655]
[1617540500010,6.08941,57888.0,57887.0,0.10725655]
[1617540500207,5.08941,57888.0,57887.0,0.10725655]
[1617540500389,11.08941,57888.0,57873.0,0.35123728]
[1617540500590,11.08941,57888.0,57866.0,0.45899692]
[1617540501089,1.0,57867.0,57866.0,0.10725655]
[1617540501292,1.15723,57867.0,57866.0,0.10725655]
[1617540501491,0.15723,57867.0,57866.0,0.10725655]
[1617540502091,1.15723,57867.0,57866.0,0.45892741]
[1617540502494,1.26448655,57867.0,57866.0,0.45892741]
[1617540502893,1.26448655,57867.0,57866.0,0.10725655]
[1617540508000,2.76448655,57867.0,57864.0,0.35222621]
[1617540509002,3.5863,57865.0,57864.0,0.35222621]
[1617540509402,6.0863,57865.0,57864.0,0.35222621]
[1617540510309,6.0863,57865.0,57847.0,0.10725655]
[1617540510310,6.0863,57865.0,57862.0,0.43219423]
[1617540510712,1.0,57863.0,57862.0,0.43219423]
[1617540510904,2.5,57863.0,57862.0,0.43219423]
[1617540511203,1.5,57863.0,57862.0,0.43219423]
[1617540511603,2.5,57863.0,57862.0,0.43219423]
[1617540511804,2.7,57863.0,57862.0,0.43219423]
[1617540512404,7.7,57863.0,57862.0,0.43219423]
[1617540512804,7.7,57863.0,57855.0,0.35456321]
[1617540512805,8.00265588,57863.0,57855.0,0.35456321]
[1617540513211,3.00265588,57863.0,57855.0,0.35456321]
[1617540513403,1.0,57856.0,57855.0,0.35456321]
[1617540513603,2.5,57856.0,57855.0,0.35456321]
[1617540514509,2.60725655,57856.0,57855.0,0.35456321]
[1617540515305,2.6124001,57856.0,57851.0,0.35493479]
[1617540516004,1.0,57852.0,57851.0,0.35493479]
[1617540516205,2.64331,57852.0,57851.0,0.35493479]
[1617540517108,2.64331,57852.0,57849.0,0.35523205]
[1617540518107,2.64331,57852.0,57850.0,0.35568935]
[1617540518108,2.94641552,57852.0,57850.0,0.35568935]
[1617540518408,0.44641552,57852.0,57850.0,0.35568935]
[1617540518607,0.30310552,57852.0,57850.0,0.35568935]
[1617540518808,1.0,57851.0,57850.0,0.35568935]
[1617540519810,1.0,57851.0,57850.0,0.41655173]
[1617540519811,1.01020111,57851.0,57850.0,0.41655173]
[1617540521212,1.0,57851.0,57850.0,0.35568935]
[1617540522012,3.9884,57851.0,57850.0,0.35568935]
[1617540522627,3.99355097,57851.0,57850.0,0.35568935]
[1617540524117,5.49052103,57851.0,57850.0,0.35568935]
[1617540524515,5.49052103,57851.0,57850.0,0.33818935]
[1617540525316,5.49052103,57851.0,57848.0,0.4343777]
[1617540525717,1.0,57849.0,57848.0,0.4343777]
[1617540525918,1.5,57848.0,57845.0,0.4345522]
[1617540526620,0.10725655,57846.0,57845.0,0.4345522]
[1617540527220,1.60725655,57846.0,57845.0,0.4345522]
[1617540527423,2.60725655,57846.0,57845.0,0.4345522]
[1617540527621,2.60937766,57846.0,57843.0,0.43493141]
[1617540529625,1.0,57844.0,57843.0,0.43493141]
[1617540530027,1.0,57844.0,57842.0,0.43502483]
[1617540530827,1.16917,57843.0,57842.0,0.43502483]
[1617540531628,1.16917,57843.0,57832.0,0.10725655]
[1617540531629,1.17432657,57843.0,57837.0,0.49469885]
[1617540532630,0.10725655,57838.0,57837.0,0.49469885]
[1617540532828,1.10725655,57838.0,57837.0,0.49469885]
[1617540535431,1.10725655,57838.0,57837.0,0.43542927]
[1617540535831,0.10725655,57838.0,57837.0,0.43542927]
[1617540536031,1.10725655,57838.0,57837.0,0.43542927]
[1617540537935,2.60725655,57838.0,57837.0,0.43542927]
[1617540540339,7.60725655,57838.0,57837.0,0.43542927]
[1617540541339,2.91032197,57838.0,57828.0,0.43589429]
[1617540541539,1.5,57833.0,57828.0,0.43589429]
[1617540542640,0.10725655,57829.0,57828.0,0.43589429]
[1617540543040,1.73290655,57829.0,57828.0,0.43589429]
[1617540543240,2.73290655,57829.0,57828.0,0.43589429]
[1617540544242,2.73290655,57829.0,57826.0,0.43603178]
[1617540544642,1.0,57827.0,57826.0,0.43603178]
[1617540544842,2.5,57827.0,57826.0,0.43603178]
[1617540546646,2.5,57827.0,57820.0,0.58680548]
[1617540548050,2.50212091,57827.0,57823.0,0.43615135]
[1617540548259,2.50261881,57824.0,57817.0,0.49562654]
[1617540548456,3.50261881,57824.0,57817.0,0.49562654]
[1617540548851,0.10725655,57818.0,57817.0,0.49562654]
[1617540549547,1.10725655,57818.0,57814.0,0.49582764]
[1617540550468,1.0,57815.0,57814.0,0.49582764]
[1617540550750,1.1105,57815.0,57814.0,0.49582764]
[1617540551550,1.1105,57815.0,57811.0,0.49615713]
[1617540552149,1.0,57812.0,57811.0,0.49615713]
[1617540552751,1.10725655,57812.0,57811.0,0.49615713]
[1617540553151,1.11243179,57812.0,57810.0,0.55840528]
[1617540553751,1.0,57811.0,57810.0,0.55840528]
[1617540553952,1.00213098,57811.0,57808.0,0.10725655]
[1617540554151,3.0863,57809.0,57808.0,0.10725655]
[1617540555052,3.0863,57809.0,57808.0,1.96156636]
[1617540556253,4.0863,57809.0,57808.0,1.96156636]
[1617540558957,4.0863,57809.0,57808.0,0.10725655]
[1617540559358,3.0863,57809.0,57808.0,0.10725655]
[1617540559974,1.0,57829.0,57808.0,0.25682655]
[1617540560395,0.474,57837.0,57808.0,0.45682655]
[1617540560396,1.0,57835.0,57808.0,0.45682655]
[1617540560766,1.0,57835.0,57834.0,0.10725655]
[1617540561164,1.0,57835.0,57834.0,0.25929655]
[1617540561362,1.0,57835.0,57834.0,3.14739655]
[1617540562364,1.66976124,57835.0,57834.0,4.43965776]
[1617540563263,1.66976124,57835.0,57834.0,3.94263422]
[1617540563766,1.66976124,57835.0,57834.0,4.43970904]
[1617540564565,1.66976124,57835.0,57834.0,4.00230463]
[1617540564966,1.66976124,57835.0,57834.0,4.43968645]
[1617540565165,0.66976124,57835.0,57834.0,4.43968645]
[1617540565967,0.4752,57836.0,57834.0,3.50522981]
[1617540566373,0.4752,57836.0,57835.0,0.41678249]
[1617540566577,0.4752,57836.0,57835.0,0.06086721]
[1617540566968,0.4752,57836.0,57835.0,0.85124314]
[1617540567168,0.4752,57836.0,57835.0,1.05124314]
[1617540567375,0.4752,57836.0,57835.0,0.85124314]
[1617540567971,0.4752,57836.0,57835.0,1.48360737]
[1617540568170,0.4752,57836.0,57835.0,0.2]
[1617540568371,0.4741857,57836.0,57835.0,1.63392248]
[1617540568769,0.4741857,57836.0,57835.0,1.48177688]
[1617540568971,0.4741857,57836.0,57835.0,0.2]
[1617540569170,0.4741857,57836.0,57835.0,1.63355332]
[1617540569369,0.4741857,57836.0,57835.0,0.3521417]
[1617540569570,0.4741857,57836.0,57835.0,1.63358612]
[1617540569970,0.4741857,57836.0,57835.0,1.48144442]
[1617540570570,0.4741857,57836.0,57835.0,1.54230157]
[1617540572976,0.4741857,57836.0,57835.0,3.04230157]
[1617540573877,0.4741857,57836.0,57835.0,3.13358682]
[1617540575881,0.4741857,57836.0,57835.0,1.63358682]
[1617540576081,0.4741857,57836.0,57835.0,1.43358682]
[1617540576480,0.4741857,57836.0,57835.0,5.16528682]
[1617540576683,0.4741857,57836.0,57835.0,5.07400157]
[1617540577081,0.4741857,57836.0,57835.0,5.16529]
[1617540577682,0.4741857,57836.0,57835.0,0.94072676]
[1617540578484,0.4741857,57836.0,57835.0,0.84943833]
[1617540578882,0.58144225,57836.0,57835.0,0.84943833]
[1617540579084,1.58144225,57836.0,57835.0,0.84943833]
[1617540580388,1.58144225,57836.0,57835.0,0.41571868]
[1617540582090,1.58144225,57836.0,57834.0,0.10725655]
[1617540582693,1.0,57835.0,57834.0,0.10725655]
[1617540584795,1.00211584,57835.0,57834.0,0.10725655]
[1617540585894,1.0,57835.0,57834.0,0.10725655]
[1617540586093,0.58355809,57836.0,57834.0,0.10725655]
[1617540586293,1.58355809,57836.0,57834.0,0.10725655]
[1617540586592,0.58355809,57836.0,57834.0,0.10725655]
[1617540587094,0.58144225,57836.0,57834.0,0.10725655]
[1617540590996,1.0,57835.0,57834.0,0.10725655]
[1617540591197,1.14835,57835.0,57834.0,0.10725655]
[1617540591397,0.14835,57835.0,57834.0,0.10725655]
[1617540591597,1.14835,57835.0,57834.0,0.10725655]
[1617540592499,1.15348847,57835.0,57834.0,0.10725655]
[1617540592897,1.15348847,57835.0,57826.0,0.35603489]
[1617540593499,1.5,57834.0,57826.0,0.35603489]
[1617540593699,1.0,57827.0,57826.0,0.35603489]
[1617540594299,1.0,57827.0,57823.0,0.35624895]
[1617540594499,2.6997,57825.0,57823.0,0.35624895]
[1617540594900,1.0,57824.0,57822.0,0.35638131]
[1617540595100,0.10725655,57823.0,57822.0,0.35638131]
[1617540596003,1.10725655,57823.0,57819.0,0.43541322]
[1617540596903,1.24417655,57823.0,57822.0,0.35628408]
[1617540599003,1.24417655,57823.0,57822.0,0.46354063]
[1617540599205,0.24417655,57823.0,57822.0,0.46354063]
[1617540600305,0.10725655,57823.0,57822.0,0.46354063]
[1617540601807,0.10725655,57823.0,57822.0,0.52441887]
[1617540603012,0.10725655,57823.0,57822.0,0.41716232]
[1617540603211,1.10725655,57823.0,57822.0,0.41716232]
[1617540604813,1.10725655,57823.0,57820.0,0.5267098]
[1617540604814,1.10725655,57823.0,57821.0,0.35643575]
[1617540605013,1.0,57822.0,57821.0,0.35643575]
[1617540605211,4.6147,57822.0,57821.0,0.35643575]
[1617540606213,4.6147,57822.0,57820.0,0.41741048]
[1617540607214,3.6147,57822.0,57820.0,0.41741048]
[1617540608418,3.6147,57822.0,57819.0,0.35660351]
[1617540609341,0.10725655,57823.0,57819.0,0.35660351]
[1617540609733,0.10725655,57823.0,57822.0,3.132]
[1617540612117,0.10725655,57823.0,57822.0,4.07540341]
[1617540613522,0.10725655,57823.0,57822.0,3.54892109]
[1617540616924,0.00211608,57833.0,57822.0,3.54892109]
[1617540617124,0.00211608,57833.0,57832.0,0.10725655]
[1617540617325,0.00211608,57833.0,57832.0,0.24143655]
[1617540617526,0.00211601,57834.0,57832.0,0.24143655]
[1617540619129,1.10725655,57833.0,57832.0,0.24143655]
[1617540619330,0.10725655,57833.0,57832.0,0.24143655]
[1617540620130,0.11745512,57833.0,57832.0,0.24143655]
[1617540620729,1.11745512,57833.0,57832.0,0.24143655]
[1617540621029,0.11745512,57833.0,57832.0,0.24143655]
[1617540622633,0.10937707,57833.0,57832.0,0.59821818]
[1617540624238,0.10725655,57833.0,57832.0,0.24143655]
[1617540625738,0.10937624,57833.0,57832.0,0.59807251]
[1617540626139,0.10937624,57833.0,57832.0,4.02797251]
[1617540626336,0.00211969,57833.0,57832.0,4.02797251]
[1617540627139,0.4741857,57836.0,57832.0,3.67133655]
[1617540628240,0.4741857,57836.0,57832.0,3.87133655]
[1617540629442,0.4741857,57836.0,57835.0,0.35547495]
[1617540632963,0.4741857,57836.0,57835.0,0.55547495]
[1617540634357,0.4741857,57836.0,57835.0,1.05028935]
[1617540634546,0.4741857,57836.0,57835.0,0.85028935]
[1617540636048,0.4741857,57836.0,57835.0,0.78942437]
[1617540637753,0.4741857,57836.0,57835.0,0.35547495]
[1617540638853,0.7786505,57836.0,57835.0,1.35071903]
[1617540640854,0.7786505,57836.0,57835.0,1.28984636]
[1617540641954,0.7786505,57836.0,57835.0,1.44230636]
[1617540642355,1.14398799,57836.0,57835.0,1.44230636]
[1617540642755,1.14398799,57836.0,57835.0,4.85550636]
[1617540643353,1.14398799,57836.0,57835.0,1.44230636]
[1617540644555,0.7786505,57836.0,57835.0,1.50317427]
[1617540645857,0.47935937,57836.0,57835.0,1.50317427]
[1617540646757,0.47631604,57836.0,57835.0,2.05918379]
[1617540651558,0.47631604,57836.0,57835.0,5.35338379]
[1617540652159,0.4741857,57836.0,57835.0,5.35338379]
[1617540653064,0.4741857,57836.0,57835.0,4.88868056]
[1617540653065,0.77864144,57836.0,57835.0,4.88868056]
[1617540656264,0.48443193,57836.0,57835.0,5.44911974]
[1617540657163,0.48443193,57836.0,57835.0,4.88868056]
[1617540657663,0.48443193,57836.0,57835.0,5.08868056]
[1617540658267,0.48443193,57836.0,57835.0,5.64931391]
[1617540658665,0.47935937,57836.0,57835.0,5.64931391]
[1617540659566,0.47631597,57836.0,57835.0,5.64931391]
[1617540662771,0.4741857,57836.0,57835.0,5.64931391]
[1617540663576,0.47935934,57836.0,57835.0,5.64931391]
[1617540666374,0.45935934,57836.0,57835.0,5.64931391]
[1617540667878,0.45631604,57836.0,57835.0,5.64931391]
[1617540668478,0.45631604,57836.0,57835.0,5.44931391]
[1617540668682,0.4541857,57836.0,57835.0,5.44931391]
[1617540669282,0.4541857,57836.0,57835.0,4.39167449]
[1617540670702,0.4541857,57836.0,57835.0,1.09747449]
[1617540670912,0.6124457,57836.0,57835.0,0.94501449]
[1617540671297,0.6124457,57836.0,57835.0,0.79284029]
[1617540671298,1.6124457,57836.0,57835.0,0.79284029]
[1617540671481,1.71970225,57836.0,57835.0,0.79284029]
[1617540671683,5.07720225,57836.0,57835.0,0.79284029]
[1617540671883,5.08739881,57836.0,57835.0,0.35547495]
[1617540673285,5.08235114,57836.0,57835.0,0.35547495]
[1617540673484,1.72485114,57836.0,57835.0,0.35547495]
[1617540674589,0.56659114,57836.0,57835.0,0.35547495]
[1617540674987,0.56356237,57836.0,57835.0,0.35547495]
[1617540675387,0.56144225,57836.0,57835.0,0.35547495]
[1617540676790,0.56356235,57836.0,57835.0,0.35547495]
[1617540676991,0.68596235,57836.0,57835.0,0.35547495]
[1617540677391,0.69111125,57836.0,57835.0,0.35547495]
[1617540677591,1.68899115,57836.0,57835.0,0.35547495]
[1617540680193,1.98726359,57836.0,57835.0,0.35547495]
[1617540681697,2.35164653,57836.0,57835.0,0.80023422]
[1617540682396,1.35164653,57836.0,57835.0,0.80023422]
[1617540684000,0.86486359,57836.0,57835.0,0.95661422]
[1617540684399,0.86486359,57836.0,57835.0,1.01749125]
[1617540685700,1.22924786,57836.0,57835.0,1.01749125]
[1617540688009,0.86486359,57836.0,57835.0,1.01749125]
[1617540689110,0.86486359,57836.0,57835.0,0.86111125]
[1617540689608,0.86486359,57836.0,57835.0,0.80023422]
[1617540691110,1.2294633,57836.0,57835.0,0.80023422]
[1617540696618,1.2294633,57836.0,57835.0,0.35547495]
[1617540696821,2.2294633,57836.0,57835.0,0.35547495]
[1617540699122,2.67508615,57836.0,57835.0,0.41635537]
[1617540699520,1.67508615,57836.0,57835.0,0.35547495]
[1617540699821,2.67508615,57836.0,57835.0,0.35547495]
[1617540701123,2.2294633,57836.0,57835.0,0.35547495]
[1617540701322,2.67508448,57836.0,57835.0,0.35547495]
[1617540701724,2.2294633,57836.0,57835.0,0.35547495]
[1617540702322,1.2294633,57836.0,57835.0,0.35547495]
[1617540704629,1.2294633,57836.0,57835.0,0.79774923]
[1617540709535,1.67504522,57836.0,57835.0,0.35547495]
[1617540709934,1.67504522,57836.0,57835.0,3.29937495]
[1617540710132,1.67504522,57836.0,57835.0,0.35547495]
[1617540710333,5.51354522,57836.0,57835.0,0.35547495]
[1617540710534,5.0679633,57836.0,57835.0,0.416356]
[1617540710735,5.2056233,57836.0,57835.0,0.416356]
[1617540710937,5.65120774,57836.0,57835.0,0.35547495]
[1617540712638,2.81270774,57836.0,57835.0,0.35547495]
[1617540712839,1.81270774,57836.0,57835.0,0.35547495]
[1617540713039,1.67504774,57836.0,57835.0,0.35547495]
[1617540713239,1.2294633,57836.0,57835.0,0.35547495]
[1617540713439,1.2294633,57836.0,57835.0,0.50537495]
[1617540714241,1.2294633,57836.0,57835.0,0.56625472]
[1617540717245,1.2294633,57836.0,57835.0,0.41635472]
[1617540718846,1.67493801,57836.0,57835.0,0.41635472]
[1617540720050,1.2294633,57836.0,57835.0,0.41635472]
[1617540720552,1.2294633,57836.0,57835.0,0.35547495]
[1617540721155,1.2294633,57836.0,57835.0,0.41635566]
[1617540721555,1.67493676,57836.0,57835.0,0.35547495]
[1617540722154,1.2294633,57836.0,57835.0,0.35547495]
[1617540724755,4.56748035,57836.0,57835.0,0.35547495]
[1617540727561,5.56748035,57836.0,57835.0,0.35547495]
[1617540728163,5.56748035,57836.0,57833.0,0.3623296]
[1617540728574,1.1139003,57834.0,57832.0,0.36239187]
[1617540728962,1.1139003,57834.0,57831.0,0.36249602]
[1617540729362,0.50681696,57833.0,57832.0,0.36290732]
[1617540729761,1.50681696,57833.0,57832.0,0.36290732]
[1617540730462,2.11508451,57833.0,57832.0,0.36290732]
[1617540730863,2.86546667,57833.0,57831.0,0.36300142]
[1617540731162,2.86546667,57833.0,57831.0,0.35600142]
[1617540731362,1.86548457,57832.0,57831.0,0.35600142]
[1617540732366,2.86548457,57832.0,57831.0,0.35600142]
[1617540732567,2.86548457,57832.0,57826.0,0.4436684]
[1617540732967,2.86548457,57832.0,57813.0,0.06088716]
[1617540732968,1.35865622,57832.0,57824.0,0.44315768]
[1617540733167,1.0,57827.0,57824.0,0.44315768]
[1617540733368,0.30377255,57825.0,57823.0,0.44322709]
[1617540733769,1.0,57824.0,57823.0,0.44322709]
[1617540733969,1.10725655,57824.0,57823.0,0.44322709]
[1617540734370,1.65458119,57824.0,57823.0,0.44322709]
[1617540738878,1.65458119,57824.0,57821.0,0.44428084]
[1617540739377,0.30379027,57822.0,57817.0,0.0608885]
[1617540739576,0.30379027,57822.0,57819.0,3.5062]
[1617540739777,2.95946657,57823.0,57821.0,0.44431565]
[1617540740178,2.95946657,57823.0,57820.0,0.15222778]
[1617540740179,0.54733324,57822.0,57820.0,0.15222778]
[1617540740377,1.54733324,57822.0,57820.0,0.15222778]
[1617540740576,1.30376879,57821.0,57820.0,0.15222778]
[1617540741076,1.30376879,57821.0,57820.0,0.59646372]
[1617540744381,1.0,57821.0,57820.0,0.59646372]
[1617540744782,1.30357271,57821.0,57820.0,0.59646372]
[1617540746381,0.30357271,57821.0,57820.0,0.59646372]
[1617540746580,1.30357271,57821.0,57820.0,0.44423594]
[1617540750190,1.01021665,57821.0,57820.0,0.44423594]
[1617540751191,1.3036484,57821.0,57820.0,0.44423594]
[1617540751390,0.3036484,57821.0,57820.0,0.44423594]
[1617540751591,1.3036484,57821.0,57820.0,0.44423594]
[1617540752227,1.3036484,57821.0,57820.0,0.59606594]
[1617540752400,0.00516004,57821.0,57820.0,4.09276594]
[1617540752794,0.9799875,57837.0,57820.0,4.74935272]
[1617540752795,0.00212463,57825.0,57820.0,4.74935272]
[1617540753016,0.00212463,57825.0,57820.0,4.94935272]
[1617540753397,0.00212455,57827.0,57820.0,4.94935272]
[1617540753796,0.00212455,57827.0,57826.0,0.94801732]
[1617540754007,0.00212455,57827.0,57826.0,1.05527387]
[1617540754408,0.00212439,57828.0,57826.0,0.61152108]
[1617540754801,0.00212441,57829.0,57827.0,1.00894365]
[1617540755097,2.9066,57832.0,57826.0,3.21635655]
[1617540755498,0.01021768,57829.0,57828.0,0.44471195]
[1617540755698,0.01021768,57829.0,57826.0,3.72171103]
[1617540755898,0.01021755,57830.0,57828.0,0.50523588]
[1617540756598,0.01021744,57831.0,57829.0,0.80924238]
[1617540756998,0.01021744,57831.0,57829.0,1.3150608]
[1617540757598,2.91681402,57832.0,57830.0,0.80930948]
[1617540757898,3.21015966,57832.0,57831.0,0.80930829]
[1617540758300,2.9066,57832.0,57831.0,0.80930829]
[1617540758700,3.21006476,57832.0,57831.0,0.80930829]
[1617540762305,2.91681591,57832.0,57831.0,0.80930829]
[1617540763107,2.9066,57832.0,57831.0,0.80930829]
[1617540766612,2.91681493,57832.0,57831.0,0.80930829]
[1617540767514,4.21012351,57832.0,57831.0,0.80930829]
[1617540769315,4.21012351,57832.0,57831.0,0.36418873]
[1617540769316,4.57435036,57832.0,57831.0,0.36418873]
[1617540769717,4.21012351,57832.0,57831.0,0.80892612]
[1617540770917,4.57435002,57832.0,57831.0,0.36418873]
[1617540771420,4.57435002,57832.0,57831.0,0.36218873]
[1617540771620,4.57435002,57832.0,57831.0,0.42307056]
[1617540772021,4.57435002,57832.0,57831.0,0.36218873]
[1617540772521,4.21012351,57832.0,57831.0,0.36218873]
[1617540775927,4.21012351,57832.0,57831.0,0.80567654]
[1617540779730,3.21012351,57832.0,57831.0,0.80567654]
[1617540783237,0.30352351,57832.0,57831.0,0.80567654]
[1617540784037,0.30352351,57832.0,57831.0,4.34887654]
[1617540784737,0.30352351,57832.0,57831.0,3.96626946]
[1617540788739,1.30352351,57832.0,57831.0,3.96626946]
[1617540794647,0.30352351,57832.0,57831.0,3.96626946]
[1617540795948,1.30352351,57832.0,57831.0,3.96626946]
[1617540796549,1.66778406,57832.0,57831.0,3.96626946]
[1617540799151,1.66778406,57832.0,57831.0,3.60408073]
[1617540799152,2.11297886,57832.0,57831.0,3.60408073]
[1617540799351,2.11297886,57832.0,57831.0,0.06088073]
[1617540799552,3.5029,57830.0,57829.0,0.3617762]
[1617540799952,4.41429534,57830.0,57829.0,0.3617762]
[1617540800552,5.41429534,57830.0,57829.0,0.3617762]
[1617540803856,4.85994491,57830.0,57829.0,0.3617762]
[1617540804055,5.85994491,57830.0,57829.0,0.3617762]
[1617540805461,5.41429534,57830.0,57829.0,0.3617762]
[1617540805859,5.85994256,57830.0,57829.0,0.3617762]
[1617540807060,5.41429534,57830.0,57829.0,0.3617762]
[1617540807460,5.85994015,57830.0,57829.0,0.3617762]
[1617540807964,5.57841534,57830.0,57829.0,0.2706762]
[1617540808160,5.57841534,57830.0,57829.0,0.1228762]
[1617540808361,6.0240649,57830.0,57829.0,0.18376316]
[1617540808761,6.0240649,57830.0,57829.0,0.1228762]
[1617540809461,6.0240649,57830.0,57829.0,0.1209762]
[1617540809663,6.0240649,57830.0,57829.0,0.14986398]
[1617540810262,6.0240649,57830.0,57829.0,0.0889762]
[1617540811361,5.0240649,57830.0,57829.0,0.0889762]
[1617540811561,6.0240649,57830.0,57829.0,0.0889762]
[1617540816267,7.5765649,57830.0,57829.0,0.0889762]
[1617540816667,7.5765649,57830.0,57786.0,1.5]
[1617540816668,7.7765649,57830.0,57821.0,0.44251647]
[1617540817067,7.7765649,57830.0,57816.0,0.44294714]
[1617540817068,0.74937054,57822.0,57816.0,0.44294714]
[1617540817669,0.30382371,57817.0,57815.0,0.44308423]
[1617540817867,0.46793371,57817.0,57815.0,0.44308423]
[1617540818070,0.46793371,57817.0,57809.0,0.50350481]
[1617540818071,0.30382638,57816.0,57814.0,0.44310363]
[1617540818268,0.10725655,57815.0,57814.0,0.44310363]
[1617540818468,1.10725655,57815.0,57814.0,0.44310363]
[1617540818669,1.41108495,57815.0,57809.0,0.50350481]
[1617540818969,0.01022549,57810.0,57808.0,0.50356146]
[1617540819370,0.01022549,57810.0,57809.0,0.44307632]
[1617540820470,1.01022549,57810.0,57809.0,0.44307632]
[1617540820773,1.30384937,57810.0,57809.0,0.44307632]
[1617540821172,1.54744853,57810.0,57809.0,0.50397611]
[1617540821573,1.54744853,57810.0,57809.0,0.44307632]
[1617540822474,1.30384937,57810.0,57809.0,0.44307632]
[1617540824577,1.0,57810.0,57807.0,0.44238074]
[1617540824777,0.0102056,57811.0,57807.0,0.44238074]
[1617540824977,3.9232,57808.0,57807.0,0.44238074]
[1617540825179,3.9232,57808.0,57806.0,0.44243572]
[1617540825580,1.0,57807.0,57806.0,0.44243572]
[1617540826381,1.10725655,57807.0,57805.0,0.44270502]
[1617540826881,1.11746453,57807.0,57805.0,0.44270502]
[1617540827181,1.0,57806.0,57805.0,0.44270502]
[1617540827382,1.01020803,57806.0,57804.0,0.44278981]
[1617540827782,1.01020803,57806.0,57803.0,0.55006697]
[1617540828486,0.93909899,57804.0,57803.0,0.55006697]
[1617540828684,1.06930899,57804.0,57803.0,0.10725655]
[1617540828885,1.13021,57804.0,57803.0,0.10725655]
[1617540829085,1.13021,57804.0,57803.0,0.5499215]
[1617540829485,0.13021,57804.0,57803.0,0.5499215]
[1617540829685,1.13021,57804.0,57803.0,0.10725655]
[1617540830485,1.13021,57804.0,57803.0,0.55008709]
[1617540832388,1.0,57804.0,57803.0,0.55008709]
[1617540832588,3.8679,57804.0,57803.0,0.55008709]
[1617540833691,3.8679,57804.0,57803.0,0.10725655]
[1617540834088,3.8679,57804.0,57803.0,0.55029261]
[1617540834512,0.11746434,57807.0,57803.0,0.55029261]
[1617540834704,1.13835,57804.0,57803.0,0.55029261]
[1617540834912,1.13835,57804.0,57803.0,0.46985]
[1617540835502,1.14855812,57804.0,57803.0,0.46985]
[1617540835699,1.44166441,57804.0,57803.0,0.46985]
[1617540836094,1.13835,57804.0,57803.0,0.46985]
[1617540837289,0.13835,57804.0,57803.0,0.46985]
[1617540837690,1.13835,57804.0,57803.0,0.46985]
[1617540838493,1.13835,57804.0,57803.0,0.36259345]
[1617540838693,2.63835,57804.0,57803.0,0.36259345]
[1617540838898,2.63835,57804.0,57803.0,0.29519345]
[1617540839095,2.94136713,57804.0,57792.0,0.44346744]
[1617540839293,7.94136713,57804.0,57792.0,0.44346744]
[1617540839493,7.94136713,57804.0,57778.0,0.56441311]
[1617540839494,0.30306033,57793.0,57784.0,0.44415365]
[1617540839694,2.5207,57787.0,57784.0,0.44415365]
[1617540839894,2.62382,57787.0,57784.0,0.44415365]
[1617540840094,2.62382,57787.0,57782.0,0.44433328]
[1617540840294,1.0,57785.0,57782.0,0.44433328]
[1617540840495,1.10725655,57783.0,57781.0,0.44437577]
[1617540840895,1.10725655,57783.0,57780.0,0.44438308]
[1617540841298,1.10725655,57783.0,57774.0,0.50498078]
[1617540841299,1.10725655,57783.0,57778.0,0.44439509]
[1617540842497,1.0,57779.0,57760.0,0.10725655]
[1617540842697,3.0402,57765.0,57761.0,0.2]
[1617540842897,3.14252,57765.0,57762.0,0.56560101]
[1617540843098,3.14252,57765.0,57762.0,0.76560101]
[1617540843298,3.14252,57765.0,57764.0,0.94940201]
[1617540844498,4.24977655,57765.0,57764.0,0.94940201]
[1617540844698,4.2487611,57765.0,57764.0,0.74940201]
[1617540844910,4.2487611,57765.0,57764.0,0.81032941]
[1617540846002,4.2487611,57765.0,57764.0,0.74940201]
[1617540846201,3.2487611,57765.0,57764.0,0.74940201]
[1617540846402,3.2487611,57765.0,57764.0,0.44440094]
[1617540846403,4.2487611,57765.0,57764.0,0.44440094]
[1617540846802,4.2487611,57765.0,57764.0,0.50532931]
[1617540847204,1.20957655,57765.0,57764.0,0.55142094]
[1617540847404,1.0,57777.0,57764.0,4.26802094]
[1617540847604,1.0,57784.0,57765.0,0.2]
[1617540848005,1.0,57785.0,57773.0,0.44258109]
[1617540848204,0.4932,57792.0,57773.0,0.44258109]
[1617540848205,1.0,57781.0,57773.0,0.44258109]
[1617540848405,1.0,57781.0,57774.0,0.44248761]
[1617540848605,1.0,57781.0,57774.0,0.54974416]
[1617540848804,1.0,57781.0,57774.0,0.61066861]
[1617540849406,1.0,57781.0,57775.0,0.06092553]
[1617540849606,1.0,57783.0,57778.0,3.3236]
[1617540849808,1.0,57788.0,57778.0,3.47031]
[1617540850207,1.0,57788.0,57779.0,0.06092433]
[1617540850407,1.0,57789.0,57779.0,0.06092433]
[1617540850607,1.0,57789.0,57783.0,0.10725655]
[1617540850806,1.0,57785.0,57783.0,0.10725655]